fUST/lending_fUST_20250306
["ID","MTS","AMOUNT","RATE_DAILY","PERIOD"]
[355525444,1741237837086,-500.0,0.00041095,120]
[355525445,1741237837095,-500.0,0.00041095,120]
[355525446,1741237837105,-374.73544055,0.00041095,2]
[355525447,1741237837114,-500.0,0.00041095,120]
[355525448,1741237837123,-500.0,0.00041095,120]
[355525449,1741237837133,-500.0,0.00041095,120]
[355525450,1741237837142,-594.5,0.00041095,120]
[355525451,1741237837152,-500.0,0.00041095,120]
[355525452,1741237837161,-512.89826559,0.00041095,120]
[355525453,1741237837171,-500.0,0.00041095,120]
[355525454,1741237837180,-500.0,0.00041095,120]
[355525455,1741237837189,-500.0,0.00041095,120]
[355525456,1741237837198,-500.0,0.00041095,120]
[355525457,1741237837208,-500.0,0.00041095,120]
[355525458,1741237837217,-2108.65,0.00041095,120]
[355525459,1741237837227,-500.0,0.00041095,120]
[355525460,1741237837237,-500.0,0.00041095,120]
[355525461,1741237837246,-500.0,0.00041095,120]
[355525462,1741237837255,-655.33,0.00041095,120]
[355525463,1741237837264,-512.84139903,0.00041095,120]
[355525464,1741237837274,-500.0,0.00041095,120]
[355525465,1741237837283,-717.97,0.00041095,120]
[355525466,1741237837292,-500.0,0.00041095,120]
[355525467,1741237837302,-500.0,0.00041095,120]
[355525468,1741237837311,-500.0,0.00041095,120]
[355525469,1741237837319,-500.0,0.00041095,120]
[355525470,1741237837329,-500.0,0.00041095,120]
[355525471,1741237837338,-509.94850292,0.00041095,120]
[355525472,1741237837347,-500.0,0.00041095,120]
[355525473,1741237837355,-500.0,0.00041095,120]
[355525474,1741237837364,-500.0,0.00041095,120]
[355525475,1741237837374,-500.0,0.00041095,120]
[355525476,1741237837383,-500.0,0.00041095,120]
[355525477,1741237837393,-743.04,0.00041095,120]
[355525478,1741237837403,-500.0,0.00041095,120]
[355525479,1741237837413,-500.0,0.00041095,120]
[355525480,1741237837423,-500.0,0.00041095,120]
[355525481,1741237837432,-2423.24,0.00041095,120]
[355525482,1741237837442,-521.54,0.00041095,120]
[355525483,1741237837452,-500.0,0.00041095,120]
[355525484,1741237837461,-504.7256414,0.00041095,120]
[355525485,1741237837471,-500.0,0.00041095,120]
[355525486,1741237837480,-500.0,0.00041095,120]
[355525487,1741237837490,-500.0,0.00041095,120]
[355525488,1741237837500,-200.0,0.00041095,7]
[355525489,1741237837510,-511.14799356,0.00041095,120]
[355525490,1741237837519,-500.0,0.00041095,120]
[355525491,1741237837529,-500.0,0.00041095,120]
[355525492,1741237837538,-919.59,0.00041095,120]
[355525493,1741237837548,-500.0,0.00041095,120]
[355525494,1741237837557,-500.0,0.00041095,120]
[355525495,1741237837567,-500.0,0.00041095,120]
[355525496,1741237837576,-500.0,0.00041095,120]
[355525497,1741237837586,-500.0,0.00041095,120]
[355525498,1741237837596,-500.0,0.00041095,120]
[355525499,1741237837611,-500.0,0.00041095,120]
[355525500,1741237837620,-500.0,0.00041095,120]
[355525501,1741237837630,-500.0,0.00041095,120]
[355525502,1741237837641,-500.0,0.00041095,120]
[355525503,1741237837651,-500.0,0.00041095,120]
[355525504,1741237837660,-500.0,0.00041095,120]
[355525505,1741237837669,-500.0,0.00041095,120]
[355525506,1741237837681,-500.0,0.00041095,120]
[355525507,1741237837691,-993.65,0.00041095,120]
[355525508,1741237837701,-500.0,0.00041095,120]
[355525509,1741237837710,-516.9157916,0.00041095,120]
[355525510,1741237837719,-500.0,0.00041095,120]
[355525511,1741237837728,-500.0,0.00041095,120]
[355525512,1741237837739,-500.0,0.00041095,120]
[355525513,1741237837748,-500.0,0.00041095,120]
[355525514,1741237837757,-500.0,0.00041095,120]
[355525515,1741237837768,-1355.24,0.00041095,120]
[355525516,1741237837777,-880.41,0.00041095,120]
[355525517,1741237837786,-504.31951153,0.00041095,120]
[355525518,1741237837796,-500.0,0.00041095,120]
[355525519,1741237837805,-500.0,0.00041095,120]
[355525520,1741237837815,-500.0,0.00041095,120]
[355525521,1741237837824,-500.0,0.00041095,120]
[355525522,1741237837833,-523.92974328,0.00041095,120]
[355525523,1741237837843,-500.0,0.00041095,120]
[355525524,1741237837852,-500.0,0.00041095,120]
[355525525,1741237837861,-500.0,0.00041095,120]
[355525526,1741237837871,-500.0,0.00041095,120]
[355525527,1741237837880,-500.0,0.00041095,120]
[355525528,1741237837889,-500.0,0.00041095,120]
[355525529,1741237837899,-500.0,0.00041095,120]
[355525530,1741237837908,-500.0,0.00041095,120]
[355525531,1741237837917,-500.0,0.00041095,120]
[355525532,1741237837927,-500.0,0.00041095,120]
[355525533,1741237837936,-574.84,0.00041095,120]
[355525534,1741237837945,-593.36,0.00041095,120]
[355525535,1741237837955,-500.0,0.00041095,120]
[355525536,1741237837964,-500.0,0.00041095,120]
[355525537,1741237837974,-500.0,0.00041095,120]
[355525538,1741237837983,-500.0,0.00041095,120]
[355525539,1741237837993,-500.0,0.00041095,120]
[355525540,1741237838002,-500.0,0.00041095,120]
[355525541,1741237838012,-500.0,0.00041095,120]
[355525542,1741237838021,-500.0,0.00041095,120]
[355525543,1741237838030,-553.50274519,0.00041095,120]
[355525544,1741237838040,-1391.45,0.00041095,120]
[355525545,1741237838050,-801.42,0.00041095,120]
[355525546,1741237838059,-500.0,0.00041095,120]
[355525547,1741237838068,-500.0,0.00041095,120]
[355525548,1741237838078,-500.0,0.00041095,120]
[355525549,1741237838087,-500.0,0.00041095,120]
[355525550,1741237838096,-500.0,0.00041095,120]
[355525551,1741237838106,-500.0,0.00041095,120]
[355525552,1741237838115,-500.0,0.00041095,120]
[355525553,1741237838124,-500.0,0.00041095,120]
[355525554,1741237838133,-1637.54,0.00041095,120]
[355525555,1741237838143,-590.68633308,0.00041095,120]
[355525556,1741237838152,-500.0,0.00041095,120]
[355525557,1741237838161,-1277.32,0.00041095,120]
[355525558,1741237838171,-500.0,0.00041095,120]
[355525559,1741237838180,-500.0,0.00041095,120]
[355525560,1741237838189,-500.0,0.00041095,120]
[355525561,1741237838198,-648.9,0.00041095,120]
[355525562,1741237838207,-500.0,0.00041095,120]
[355525564,1741237838216,-500.0,0.00041095,120]
[355525565,1741237838225,-500.0,0.00041095,120]
[355525567,1741237838235,-500.0,0.00041095,120]
[355525570,1741237838244,-500.0,0.00041095,120]
[355525572,1741237838253,-500.0,0.00041095,120]
[355525573,1741237838263,-622.27,0.00041095,120]
[355525575,1741237838273,-500.0,0.00041095,120]
[355525576,1741237838282,-500.0,0.00041095,120]
[355525577,1741237838291,-500.0,0.00041095,120]
[355525578,1741237838300,-500.0,0.00041095,120]
[355525579,1741237838309,-510.51602066,0.00041095,120]
[355525580,1741237838318,-638.59468655,0.00041095,120]
[355525582,1741237838328,-1008.22,0.00041095,120]
[355525584,1741237838337,-500.0,0.00041095,120]
[355525586,1741237838347,-500.0,0.00041095,120]
[355525588,1741237838356,-500.0,0.00041095,120]
[355525590,1741237838365,-500.0,0.00041095,120]
[355525592,1741237838374,-500.0,0.00041095,120]
[355525594,1741237838384,-500.0,0.00041095,120]
[355525596,1741237838393,-509.81578487,0.00041095,120]
[355525598,1741237838402,-500.0,0.00041095,120]
[355525600,1741237838411,-500.0,0.00041095,120]
[355525602,1741237838421,-500.0,0.00041095,120]
[355525604,1741237838430,-500.0,0.00041095,120]
[355525606,1741237838439,-527.24225958,0.00041095,120]
[355525608,1741237838448,-500.0,0.00041095,120]
[355525621,1741237838556,-1098.8,0.00041095,120]
[355525623,1741237838582,-2064.99,0.00041095,120]
[355525625,1741237838591,-500.0,0.00041095,120]
[355525627,1741237838604,-500.0,0.00041095,120]
[355525629,1741237838615,-424.72911083,0.00041095,120]
[355525631,1741237838625,-500.0,0.00041095,120]
[355525633,1741237838635,-500.0,0.00041095,120]
[355525635,1741237838645,-500.0,0.00041095,120]
[355525637,1741237838655,-500.0,0.00041095,120]
[355525639,1741237838665,-500.0,0.00041095,120]
[355525641,1741237838674,-500.0,0.00041095,120]
[355525643,1741237838685,-500.0,0.00041095,120]
[355525645,1741237838695,-500.0,0.00041095,120]
[355525647,1741237838705,-1225.72,0.00041095,120]
[355525649,1741237838714,-1013.26,0.00041095,120]
[355525651,1741237838723,-500.0,0.00041095,120]
[355525653,1741237838733,-500.0,0.00041095,120]
[355525656,1741237838743,-2252.5,0.00041095,120]
[355525657,1741237838753,-500.0,0.00041095,120]
[355525659,1741237838763,-512.5211731,0.00041095,120]
[355525661,1741237838772,-500.0,0.00041095,120]
[355525663,1741237838781,-500.0,0.00041095,120]
[355525666,1741237838791,-500.0,0.00041095,120]
[355525667,1741237838800,-500.0,0.00041095,120]
[355525670,1741237838809,-500.0,0.00041095,120]
[355525671,1741237838819,-500.0,0.00041095,120]
[355525672,1741237838828,-2440.78,0.00041095,120]
[355525673,1741237838838,-500.0,0.00041095,120]
[355525674,1741237838847,-500.0,0.00041095,120]
[355525675,1741237838857,-500.0,0.00041095,120]
[355525676,1741237838867,-1000.0,0.00041095,120]
[355525677,1741237838876,-500.0,0.00041095,120]
[355525678,1741237838885,-500.0,0.00041095,120]
[355525679,1741237838895,-500.0,0.00041095,120]
[355525680,1741237838905,-500.0,0.00041095,120]
[355525681,1741237838914,-500.0,0.00041095,120]
[355525682,1741237838924,-520.80807842,0.00041095,120]
[355525683,1741237838933,-500.0,0.00041095,120]
[355525684,1741237838942,-500.0,0.00041095,120]
[355525685,1741237838952,-500.0,0.00041095,120]
[355525686,1741237838961,-500.0,0.00041095,120]
[355525687,1741237838972,-500.0,0.00041095,120]
[355525688,1741237838981,-507.24636494,0.00041095,120]
[355525689,1741237838992,-510.16460137,0.00041095,120]
[355525690,1741237839002,-500.0,0.00041095,120]
[355525691,1741237839011,-502.33988258,0.00041095,120]
[355525692,1741237839021,-505.14946428,0.00041095,120]
[355525693,1741237839030,-1145.66,0.00041095,120]
[355525694,1741237839039,-2132.95,0.00041095,120]
[355525695,1741237839049,-500.0,0.00041095,120]
[355525696,1741237839059,-500.0,0.00041095,120]
[355525697,1741237839068,-1245.45,0.00041095,120]
[355525698,1741237839077,-500.0,0.00041095,120]
[355525699,1741237839087,-500.0,0.00041095,120]
[355525700,1741237839096,-500.0,0.00041095,120]
[355525701,1741237839105,-500.0,0.00041095,120]
[355525702,1741237839115,-500.0,0.00041095,120]
[355525703,1741237839124,-500.0,0.00041095,120]
[355525704,1741237839133,-516.39674833,0.00041095,120]
[355525705,1741237839142,-500.0,0.00041095,120]
[355525706,1741237839152,-844.52,0.00041095,120]
[355525707,1741237839161,-500.0,0.00041095,120]
[355525708,1741237839171,-501.05241306,0.00041095,120]
[355525709,1741237839180,-500.0,0.00041095,120]
[355525710,1741237839189,-500.0,0.00041095,120]
[355525711,1741237839198,-941.76,0.00041095,120]
[355525712,1741237839208,-500.0,0.00041095,120]
[355525713,1741237839218,-700.87,0.00041095,120]
[355525714,1741237839228,-500.0,0.00041095,120]
[355525715,1741237839238,-500.0,0.00041095,120]
[355525716,1741237839247,-500.0,0.00041095,120]
[355525717,1741237839256,-510.4950369,0.00041095,120]
[355525718,1741237839265,-500.0,0.00041095,120]
[355525719,1741237839274,-500.0,0.00041095,120]
[355525720,1741237839284,-500.0,0.00041095,120]
[355525721,1741237839293,-416.66666667,0.00041095,7]
[355525722,1741237839302,-416.66666667,0.00041095,30]
[355525723,1741237839311,-500.0,0.00041095,120]
[355525724,1741237839321,-500.0,0.00041095,120]
[355525725,1741237839330,-400.05362318,0.00041095,120]
[355525726,1741237839339,-579.97,0.00041095,120]
[355525727,1741237839349,-500.0,0.00041095,120]
[355525728,1741237839358,-500.0,0.00041095,120]
[355525729,1741237839367,-500.0,0.00041095,120]
[355525730,1741237839377,-230.83182028,0.00041095,120]
[355525731,1741237839387,-500.0,0.00041095,120]
[355525732,1741237839396,-500.0,0.00041095,120]
[355525733,1741237839406,-500.0,0.00041095,120]
[355525734,1741237839415,-500.0,0.00041095,120]
[355525735,1741237839424,-500.0,0.00041095,120]
[355525736,1741237839434,-1710.39,0.00041095,120]
[355525737,1741237839443,-500.0,0.00041095,120]
[355525738,1741237839452,-500.0,0.00041095,120]
[355525739,1741237839462,-500.0,0.00041095,120]
[355525740,1741237839472,-2233.27,0.00041095,120]
[355525741,1741237839481,-500.0,0.00041095,30]
[355525742,1741237839492,-500.0,0.00041095,120]
[355525743,1741237839502,-500.0,0.00041095,45]
[355525744,1741237839512,-501.42805207,0.00041095,120]
[355525745,1741237839520,-500.0,0.00041095,120]
[355525746,1741237839529,-506.09745251,0.00041095,120]
[355525747,1741237839538,-525.93,0.00041095,120]
[355525748,1741237839547,-878.92,0.00041095,120]
[355525749,1741237839557,-1667.93,0.00041095,120]
[355525750,1741237839567,-500.0,0.00041095,120]
[355525751,1741237839577,-500.0,0.00041095,120]
[355525752,1741237839586,-500.0,0.00041095,120]
[355525753,1741237839595,-500.0,0.00041095,120]
[355525754,1741237839606,-518.63902968,0.00041095,120]
[355525755,1741237839615,-773.17,0.00041095,120]
[355525756,1741237839625,-500.0,0.00041095,120]
[355525757,1741237839634,-500.0,0.00041095,120]
[355525758,1741237839644,-710.43,0.00041095,120]
[355525759,1741237839654,-500.0,0.00041095,120]
[355525760,1741237839664,-1122.54,0.00041095,120]
[355525761,1741237839673,-500.0,0.00041095,120]
[355525762,1741237839685,-929.52,0.00041095,120]
[355525763,1741237839695,-665.54,0.00041095,120]
[355525764,1741237839704,-500.0,0.00041095,120]
[355525765,1741237839714,-500.0,0.00041095,120]
[355525766,1741237839723,-11268.24,0.00041095,120]
[355525767,1741237839733,-500.0,0.00041095,120]
[355525768,1741237839743,-520.81,0.00041095,120]
[355525769,1741237839752,-500.0,0.00041095,120]
[355525770,1741237839762,-500.0,0.00041095,120]
[355525771,1741237839771,-500.0,0.00041095,120]
[355525772,1741237839781,-500.0,0.00041095,120]
[355525773,1741237839790,-980.75,0.00041095,120]
[355525774,1741237839800,-515.98,0.00041095,120]
[355525775,1741237839809,-2137.6,0.00041095,120]
[355525776,1741237839819,-500.0,0.00041095,120]
[355525777,1741237839828,-7648.47,0.00041095,120]
[355525778,1741237839837,-500.0,0.00041095,120]
[355525779,1741237839846,-500.0,0.00041095,120]
[355525780,1741237839856,-500.0,0.00041095,120]
[355525781,1741237839865,-3842.31,0.00041095,120]
[355525782,1741237839875,-690.9,0.00041095,120]
[355525783,1741237839885,-998.23,0.00041095,120]
[355525784,1741237839896,-2904.75,0.00041095,120]
[355525785,1741237839906,-500.0,0.00041095,120]
[355525786,1741237839917,-3521.3,0.00041095,120]
[355525787,1741237839926,-510.00911298,0.00041095,120]
[355525788,1741237839935,-500.0,0.00041095,120]
[355525789,1741237839945,-500.0,0.00041095,120]
[355525790,1741237839955,-6868.17,0.00041095,120]
[355525791,1741237839965,-500.0,0.00041095,120]
[355525792,1741237839975,-272.0083401,0.00041095,120]
[355525793,1741237839984,-4655.01,0.00041095,120]
[355525794,1741237839994,-500.0,0.00041095,120]
[355525795,1741237840004,-1372.01,0.00041095,120]
[355525796,1741237840013,-500.0,0.00041095,120]
[355525797,1741237840022,-500.0,0.00041095,120]
[355525798,1741237840032,-500.0,0.00041095,120]
[355525799,1741237840041,-509.14,0.00041095,120]
[355525800,1741237840050,-500.0,0.00041095,120]
[355525801,1741237840059,-1028.46,0.00041095,120]
[355525802,1741237840070,-500.0,0.00041095,120]
[355525803,1741237840081,-11673.71,0.00041095,120]
[355525804,1741237840091,-210.8108474,0.00041095,120]
[355525805,1741237840101,-500.0,0.00041095,120]
[355525806,1741237840111,-536.32,0.00041095,120]
[355525807,1741237840121,-500.0,0.00041095,120]
[355525808,1741237840130,-500.0,0.00041095,120]
[355525809,1741237840140,-500.0,0.00041095,120]
[355525810,1741237840150,-500.0,0.00041095,120]
[355525811,1741237840160,-500.0,0.00041095,120]
[355525812,1741237840169,-559.12,0.00041095,120]
[355525813,1741237840180,-696.97,0.00041095,120]
[355525814,1741237840190,-869.32,0.00041095,120]
[355525815,1741237840201,-500.0,0.00041095,120]
[355525816,1741237840211,-500.0,0.00041095,120]
[355525817,1741237840221,-500.0,0.00041095,120]
[355525818,1741237840231,-4221.54,0.00041095,120]
[355525819,1741237840242,-1424.52,0.00041095,120]
[355525820,1741237840252,-590.32,0.00041095,120]
[355525821,1741237840263,-500.0,0.00041095,120]
[355525822,1741237840273,-500.0,0.00041095,120]
[355525823,1741237840282,-500.0,0.00041095,120]
[355525824,1741237840292,-500.0,0.00041095,120]
[355525825,1741237840302,-500.0,0.00041095,120]
[355525826,1741237840311,-500.0,0.00041095,120]
[355525827,1741237840321,-500.0,0.00041095,120]
[355525828,1741237840330,-500.0,0.00041095,120]
[355525829,1741237840339,-251.5059468,0.00041095,120]
[355525830,1741237840348,-500.0,0.00041095,120]
[355525831,1741237840359,-2002.55,0.00041095,120]
[355525832,1741237840369,-500.0,0.00041095,120]
[355525833,1741237840378,-2207.75,0.00041095,120]
[355525834,1741237840387,-500.0,0.00041095,120]
[355525835,1741237840397,-1766.01,0.00041095,120]
[355525836,1741237840407,-500.0,0.00041095,120]
[355525837,1741237840418,-1679.93,0.00041095,120]
[355525838,1741237840427,-592.82,0.00041095,30]
[355525839,1741237840437,-505.50764057,0.00041095,120]
[355525840,1741237840446,-883.0,0.00041095,120]
[355525841,1741237840455,-507.96,0.00041095,120]
[355525842,1741237840467,-4870.97,0.00041095,120]
[355525843,1741237840476,-3457.45,0.00041095,120]
[355525845,1741237840486,-500.0,0.00041095,120]
[355525847,1741237840495,-500.0,0.00041095,120]
[355525849,1741237840504,-500.0,0.00041095,120]
[355525851,1741237840513,-622.42,0.00041095,120]
[355525852,1741237840615,-540.07548432,0.00041095,120]
[355525853,1741237840635,-500.0,0.00041095,120]
[355525854,1741237840645,-500.0,0.00041095,120]
[355525855,1741237840655,-500.0,0.00041095,120]
[355525856,1741237840665,-787.48,0.00041095,120]
[355525857,1741237840674,-4039.68,0.00041095,120]
[355525858,1741237840684,-129496.01,0.00041095,7]
[355525859,1741237840693,-500.0,0.00041095,120]
[355525860,1741237840703,-1811.17,0.00041095,120]
[355525861,1741237840713,-525.76329857,0.00041095,120]
[355525862,1741237840723,-510.8,0.00041095,120]
[355525863,1741237840732,-898.12,0.00041095,120]
[355525864,1741237840743,-500.0,0.00041095,120]
[355525865,1741237840752,-500.0,0.00041095,120]
[355525866,1741237840761,-500.0,0.00041095,120]
[355525867,1741237840773,-500.0,0.00041095,120]
[355525868,1741237840782,-500.0,0.00041095,120]
[355525869,1741237840794,-689.01,0.00041095,120]
[355525870,1741237840803,-851.22,0.00041095,120]
[355525871,1741237840813,-500.0,0.00041095,120]
[355525872,1741237840823,-500.0,0.00041095,120]
[355525873,1741237840832,-500.0,0.00041095,120]
[355525874,1741237840843,-500.0,0.00041095,120]
[355525875,1741237840852,-500.0,0.00041095,120]
[355525876,1741237840862,-500.0,0.00041095,120]
[355525877,1741237840871,-500.0,0.00041095,120]
[355525878,1741237840880,-500.0,0.00041095,120]
[355525879,1741237840890,-3667.84,0.00041095,120]
[355525880,1741237840900,-500.0,0.00041095,120]
[355525881,1741237840910,-4320.76,0.00041095,120]
[355525882,1741237840919,-500.0,0.00041095,120]
[355525883,1741237840928,-500.0,0.00041095,120]
[355525884,1741237840939,-500.0,0.00041095,120]
[355525885,1741237840948,-500.0,0.00041095,120]
[355525886,1741237840958,-500.0,0.00041095,120]
[355525887,1741237840967,-500.0,0.00041095,120]
[355525888,1741237840977,-999.0,0.00041095,120]
[355525889,1741237840986,-500.0,0.00041095,120]
[355525890,1741237840995,-1003.56,0.00041095,120]
[355525891,1741237841005,-500.0,0.00041095,120]
[355525892,1741237841015,-500.0,0.00041095,120]
[355525893,1741237841024,-1551.44,0.00041095,120]
[355525894,1741237841034,-511.06221123,0.00041095,120]
[355525895,1741237841043,-630.01,0.00041095,120]
[355525896,1741237841052,-1630.32,0.00041095,120]
[355525897,1741237841062,-1531.45,0.00041095,120]
[355525898,1741237841072,-500.0,0.00041095,120]
[355525899,1741237841081,-749.41,0.00041095,120]
[355525900,1741237841091,-500.0,0.00041095,120]
[355525901,1741237841100,-500.0,0.00041095,120]
[355525902,1741237841110,-500.0,0.00041095,120]
[355525903,1741237841119,-500.0,0.00041095,120]
[355525904,1741237841128,-14800.99,0.00041095,30]
[355525905,1741237841138,-15632.9,0.00041095,120]
[355525906,1741237841147,-500.0,0.00041095,120]
[355525907,1741237841157,-500.0,0.00041095,120]
[355525908,1741237841166,-555.07,0.00041095,120]
[355525909,1741237841175,-500.0,0.00041095,120]
[355525910,1741237841184,-5660.0,0.00041095,120]
[355525911,1741237841193,-2248.7,0.00041095,120]
[355525912,1741237841203,-500.0,0.00041095,120]
[355525913,1741237841212,-500.0,0.00041095,120]
[355525914,1741237841221,-500.0,0.00041095,120]
[355525915,1741237841231,-16283.84,0.00041095,120]
[355525916,1741237841241,-664.19,0.00041095,120]
[355525917,1741237841250,-500.0,0.00041095,120]
[355525918,1741237841259,-500.0,0.00041095,120]
[355525919,1741237841268,-1264.44,0.00041095,120]
[355525920,1741237841277,-500.0,0.00041095,120]
[355525921,1741237841287,-500.0,0.00041095,120]
[355525922,1741237841296,-708.29,0.00041095,120]
[355525923,1741237841305,-919.06,0.00041095,120]
[355525924,1741237841314,-500.0,0.00041095,120]
[355525925,1741237841324,-1404.31,0.00041095,120]
[355525926,1741237841333,-500.0,0.00041095,120]
[355525927,1741237841342,-598.7,0.00041095,120]
[355525928,1741237841351,-810.81,0.00041095,120]
[355525929,1741237841361,-815.42,0.00041095,120]
[355525930,1741237841370,-500.0,0.00041095,120]
[355525931,1741237841380,-2565.08,0.00041095,120]
[355525932,1741237841390,-500.0,0.00041095,120]
[355525933,1741237841399,-500.0,0.00041095,120]
[355525934,1741237841408,-500.0,0.00041095,120]
[355525935,1741237841418,-500.0,0.00041095,120]
[355525936,1741237841428,-500.0,0.00041095,120]
[355525937,1741237841437,-500.0,0.00041095,120]
[355525938,1741237841446,-500.0,0.00041095,120]
[355525939,1741237841455,-8511.95,0.00041095,120]
[355525940,1741237841465,-500.0,0.00041095,120]
[355525941,1741237841474,-500.0,0.00041095,120]
[355525942,1741237841483,-8511.95,0.00041095,120]
[355525943,1741237841494,-8511.95,0.00041095,120]
[355525944,1741237841503,-8511.95,0.00041095,120]
[355525945,1741237841513,-8511.95,0.00041095,120]
[355525946,1741237841522,-644.96,0.00041095,120]
[355525947,1741237841532,-8511.95,0.00041095,120]
[355525948,1741237841542,-500.0,0.00041095,120]
[355525949,1741237841551,-8511.95,0.00041095,120]
[355525950,1741237841561,-8511.95,0.00041095,120]
[355525951,1741237841571,-8511.95,0.00041095,120]
[355525952,1741237841580,-8511.95,0.00041095,120]
[355525953,1741237841589,-500.0,0.00041095,120]
[355525954,1741237841599,-8511.95,0.00041095,120]
[355525955,1741237841613,-8511.95,0.00041095,120]
[355525956,1741237841622,-8511.95,0.00041095,120]
[355525957,1741237841632,-8511.95,0.00041095,120]
[355525958,1741237841642,-590.32,0.00041095,120]
[355525959,1741237841652,-8511.95,0.00041095,120]
[355525960,1741237841662,-8511.95,0.00041095,120]
[355525961,1741237841672,-8511.95,0.00041095,120]
[355525962,1741237841685,-8511.95,0.00041095,120]
[355525963,1741237841694,-8511.95,0.00041095,120]
[355525964,1741237841704,-8511.95,0.00041095,120]
[355525965,1741237841714,-8511.95,0.00041095,120]
[355525966,1741237841724,-2151.3,0.00041095,120]
[355525967,1741237841734,-8511.95,0.00041095,120]
[355525968,1741237841744,-500.0,0.00041095,120]
[355525969,1741237841753,-8511.95,0.00041095,120]
[355525970,1741237841763,-8512.08586725,0.00041095,120]
[355525971,1741237841773,-653.74,0.00041095,120]
[355525972,1741237841783,-549.46,0.00041095,120]
[355525973,1741237841793,-1171.27,0.00041095,120]
[355525974,1741237841803,-500.0,0.00041095,120]
[355525975,1741237841812,-500.0,0.00041095,120]
[355525976,1741237841821,-1334.48,0.00041095,120]
[355525977,1741237841831,-500.0,0.00041095,120]
[355525978,1741237841842,-500.0,0.00041095,120]
[355525979,1741237841852,-500.0,0.00041095,120]
[355525980,1741237841862,-1252.24,0.00041095,120]
[355525981,1741237841871,-500.0,0.00041095,120]
[355525982,1741237841881,-500.0,0.00041095,120]
[355525983,1741237841890,-500.0,0.00041095,120]
[355525984,1741237841900,-500.0,0.00041095,120]
[355525985,1741237841909,-593.16,0.00041095,120]
[355525986,1741237841919,-1664.79,0.00041095,120]
[355525987,1741237841929,-653.07,0.00041095,120]
[355525988,1741237841938,-501.47591858,0.00041095,120]
[355525989,1741237841948,-1311.74,0.00041095,120]
[355525990,1741237841957,-500.0,0.00041095,120]
[355525991,1741237841966,-500.0,0.00041095,120]
[355525992,1741237841976,-1412.51,0.00041095,120]
[355525993,1741237841986,-500.0,0.00041095,120]
[355525994,1741237841996,-500.0,0.00041095,120]
[355525995,1741237842007,-536.07,0.00041095,120]
[355525996,1741237842016,-1247.47,0.00041095,120]
[355525997,1741237842026,-500.0,0.00041095,120]
[355525998,1741237842035,-500.0,0.00041095,120]
[355525999,1741237842045,-500.0,0.00041095,120]
[355526000,1741237842054,-500.0,0.00041095,120]
[355526001,1741237842066,-500.0,0.00041095,120]
[355526002,1741237842076,-500.0,0.00041095,120]
[355526003,1741237842085,-7432.7,0.00041095,14]
[355526004,1741237842094,-1066.09,0.00041095,120]